[Event "*** Titled Tuesday Blitz"]
[Site "Chess.com"]
[Date "2018.06.05"]
[Round "10"]
[White "GMMatamoros"]
[Black "Keranke"]
[Result "0-1"]
[WhiteElo "2528"]
[BlackElo "2731"]
[TimeControl "180+2"]
[EndTime "15:26:24 PDT"]
[Termination "Keranke won by resignation"]

1. Nf3 {[%clk 0:03:01.9]} 1... g6 {[%clk 0:02:57.2]} 2. g3 {[%clk 0:02:59]} 2...
Bg7 {[%clk 0:02:59.1]} 3. d4 {[%clk 0:03:00.2]} 3... Nf6 {[%clk 0:03:01]} 4. Bg2
{[%clk 0:03:01.1]} 4... O-O {[%clk 0:03:02.9]} 5. c4 {[%clk 0:03:02.3]} 5... d6
{[%clk 0:03:04.8]} 6. O-O {[%clk 0:03:03.2]} 6... c6 {[%clk 0:03:06.6]} 7. Nc3
{[%clk 0:03:04.3]} 7... Qa5 {[%clk 0:03:08]} 8. e4 {[%clk 0:03:04.7]} 8... Qh5
{[%clk 0:03:08.8]} 9. Ng5 {[%clk 0:03:05.3]} 9... Qxd1 {[%clk 0:03:10.7]} 10.
Rxd1 {[%clk 0:03:06.2]} 10... e5 {[%clk 0:03:12.3]} 11. d5 {[%clk 0:03:03.5]}
11... cxd5 {[%clk 0:03:13]} 12. cxd5 {[%clk 0:03:04.2]} 12... Na6 {[%clk
0:03:13.8]} 13. f3 {[%clk 0:02:38.1]} 13... Bd7 {[%clk 0:03:12.8]} 14. Be3
{[%clk 0:02:38.5]} 14... Rfc8 {[%clk 0:03:10.3]} 15. Rac1 {[%clk 0:02:25.7]}
15... Nc5 {[%clk 0:03:04.4]} 16. Bf1 {[%clk 0:02:08.9]} 16... a6 {[%clk
0:02:57.5]} 17. Nh3 {[%clk 0:01:55.5]} 17... Ne8 {[%clk 0:02:47.6]} 18. Nf2
{[%clk 0:01:54.5]} 18... f5 {[%clk 0:02:48.6]} 19. Nd3 {[%clk 0:01:43.1]} 19...
Nxd3 {[%clk 0:02:46.1]} 20. Bxd3 {[%clk 0:01:45]} 20... Nf6 {[%clk 0:02:39.5]}
21. Kg2 {[%clk 0:01:32.8]} 21... Kf7 {[%clk 0:02:32.2]} 22. b3 {[%clk
0:01:31.9]} 22... Ke7 {[%clk 0:02:21.7]} 23. Na4 {[%clk 0:01:31.2]} 23... Bxa4
{[%clk 0:02:14.5]} 24. bxa4 {[%clk 0:01:33.1]} 24... fxe4 {[%clk 0:02:14.2]} 25.
fxe4 {[%clk 0:01:26.9]} 25... Nd7 {[%clk 0:02:08.9]} 26. Rb1 {[%clk 0:01:07.5]}
26... Rc7 {[%clk 0:02:04.9]} 27. Rdc1 {[%clk 0:01:01.6]} 27... Rac8 {[%clk
0:02:01.9]} 28. Rxc7 {[%clk 0:00:42.9]} 28... Rxc7 {[%clk 0:02:03.8]} 29. Kf3
{[%clk 0:00:40.4]} 29... Kd8 {[%clk 0:01:29.8]} 30. Ke2 {[%clk 0:00:32]} 30...
Kc8 {[%clk 0:01:28.4]} 31. Rf1 {[%clk 0:00:26.6]} 31... Bf6 {[%clk 0:01:05.7]}
32. g4 {[%clk 0:00:21.4]} 32... Bd8 {[%clk 0:01:03.5]} 33. Rf7 {[%clk
0:00:18.4]} 33... Nf6 {[%clk 0:01:02.9]} 34. Rxc7+ {[%clk 0:00:18.5]} 34... Bxc7
{[%clk 0:01:04.5]} 35. h3 {[%clk 0:00:18.4]} 35... Ba5 {[%clk 0:01:05.1]} 36.
Kf3 {[%clk 0:00:19]} 36... Bb4 {[%clk 0:01:02.4]} 37. Bf1 {[%clk 0:00:19.7]}
37... Bc5 {[%clk 0:01:00.9]} 38. Bd2 {[%clk 0:00:18.7]} 38... Nd7 {[%clk
0:01:01.5]} 39. g5 {[%clk 0:00:18.9]} 39... Kc7 {[%clk 0:00:58.7]} 40. h4 {[%clk
0:00:16.9]} 40... Bd4 {[%clk 0:00:57.8]} 41. a5 {[%clk 0:00:15]} 41... Nc5
{[%clk 0:00:54.1]} 42. Bh3 {[%clk 0:00:15.9]} 42... Kd8 {[%clk 0:00:46.5]} 43.
Bb4 {[%clk 0:00:14.7]} 43... Bg1 {[%clk 0:00:35.8]} 44. Bg4 {[%clk 0:00:14.6]}
44... Bd4 {[%clk 0:00:35.9]} 45. h5 {[%clk 0:00:13.1]} 45... Bb2 {[%clk
0:00:25.7]} 46. h6 {[%clk 0:00:12.4]} 46... Bc1 {[%clk 0:00:26.2]} 47. Bxc5
{[%clk 0:00:06.7]} 47... dxc5 {[%clk 0:00:28.1]} 48. Be6 {[%clk 0:00:06.2]}
48... Bxg5 {[%clk 0:00:29]} 49. Bg8 {[%clk 0:00:07.8]} 49... Bxh6 {[%clk
0:00:29.2]} 50. Bxh7 {[%clk 0:00:09.3]} 50... g5 {[%clk 0:00:25.9]} 51. Bf5
{[%clk 0:00:06.7]} 51... Kc7 {[%clk 0:00:21.4]} 52. Ke2 {[%clk 0:00:06.6]} 52...
c4 {[%clk 0:00:21]} 53. Kd2 {[%clk 0:00:07.2]} 53... g4+ {[%clk 0:00:22]} 54.
Kc3 {[%clk 0:00:06.1]} 54... g3 {[%clk 0:00:23.6]} 55. Bh3 {[%clk 0:00:07.4]}
55... Kd6 {[%clk 0:00:23.3]} 56. Kxc4 {[%clk 0:00:08.5]} 56... Bd2 {[%clk
0:00:24.9]} 57. a4 {[%clk 0:00:09]} 57... Bxa5 {[%clk 0:00:26]} 58. Kd3 {[%clk
0:00:10]} 58... b5 {[%clk 0:00:23.2]} 59. axb5 {[%clk 0:00:10.6]} 59... axb5
{[%clk 0:00:25.1]} 60. Kc2 {[%clk 0:00:10.5]} 60... Kc5 {[%clk 0:00:24.4]} 61.
Kb3 {[%clk 0:00:11.6]} 61... Bc7 {[%clk 0:00:25.5]} 62. Bg2 {[%clk 0:00:11.8]}
62... Bd6 {[%clk 0:00:26.6]} 63. Bh3 {[%clk 0:00:12.6]} 63... Kd4 {[%clk
0:00:27.7]} 64. Bg2 {[%clk 0:00:13.6]} 64... Ke3 {[%clk 0:00:28.3]} 0-1

[Event "*** Titled Tuesday Blitz"]
[Site "Chess.com"]
[Date "2018.06.05"]
[Round "10"]
[White "nubair1198"]
[Black "Beca95"]
[Result "0-1"]
[WhiteElo "2537"]
[BlackElo "2762"]
[TimeControl "180+2"]
[EndTime "15:26:30 PDT"]
[Termination "Beca95 won on time"]

1. d4 {[%clk 0:03:01.9]} 1... Nf6 {[%clk 0:03:00.5]} 2. c4 {[%clk 0:03:02.5]}
2... c5 {[%clk 0:03:01.8]} 3. d5 {[%clk 0:03:03]} 3... e6 {[%clk 0:03:02.5]} 4.
Nc3 {[%clk 0:03:04.3]} 4... exd5 {[%clk 0:03:04.4]} 5. cxd5 {[%clk 0:03:06.2]}
5... d6 {[%clk 0:03:06]} 6. e4 {[%clk 0:03:07.1]} 6... g6 {[%clk 0:03:07.4]} 7.
h3 {[%clk 0:03:07.5]} 7... Bg7 {[%clk 0:03:08.4]} 8. Nf3 {[%clk 0:03:09.1]} 8...
O-O {[%clk 0:03:09.6]} 9. Bd3 {[%clk 0:03:10.2]} 9... Nbd7 {[%clk 0:03:10.2]}
10. O-O {[%clk 0:03:10.8]} 10... Re8 {[%clk 0:03:11.6]} 11. Bf4 {[%clk
0:03:10.1]} 11... c4 {[%clk 0:03:11.6]} 12. Bc2 {[%clk 0:02:48.6]} 12... Nc5
{[%clk 0:03:11.2]} 13. Re1 {[%clk 0:02:47.9]} 13... b5 {[%clk 0:03:08.5]} 14. e5
{[%clk 0:02:46]} 14... dxe5 {[%clk 0:03:07.4]} 15. Nxe5 {[%clk 0:02:47]} 15...
Qb6 {[%clk 0:03:05.8]} 16. Nc6 {[%clk 0:02:45.7]} 16... Bb7 {[%clk 0:03:01.3]}
17. Ne7+ {[%clk 0:02:31.5]} 17... Rxe7 {[%clk 0:02:58.8]} 18. Rxe7 {[%clk
0:02:31.6]} 18... b4 {[%clk 0:03:00.2]} 19. Bc7 {[%clk 0:02:12.9]} 19... Qa6
{[%clk 0:02:54.6]} 20. Qd4 {[%clk 0:01:23.8]} 20... bxc3 {[%clk 0:02:48.5]} 21.
Qxc5 {[%clk 0:01:24.4]} 21... Nxd5 {[%clk 0:02:49.5]} 22. bxc3 {[%clk
0:01:10.4]} 22... Nxe7 {[%clk 0:02:45]} 23. Qxe7 {[%clk 0:01:12.3]} 23... Qc6
{[%clk 0:02:41.2]} 24. f3 {[%clk 0:01:06.5]} 24... Re8 {[%clk 0:02:41.8]} 25.
Qd6 {[%clk 0:01:05.1]} 25... Bxc3 {[%clk 0:02:41.5]} 26. Rb1 {[%clk 0:00:57.3]}
26... Be5 {[%clk 0:02:32]} 27. Qxc6 {[%clk 0:00:40.7]} 27... Bxc6 {[%clk
0:02:32.8]} 28. Bxe5 {[%clk 0:00:29.4]} 28... Rxe5 {[%clk 0:02:34.7]} 29. Kf2
{[%clk 0:00:31.3]} 29... Ra5 {[%clk 0:02:33.9]} 30. a4 {[%clk 0:00:31.4]} 30...
Kg7 {[%clk 0:02:30.6]} 31. Rb4 {[%clk 0:00:32.4]} 31... Bd5 {[%clk 0:02:28.4]}
32. Ke3 {[%clk 0:00:32.5]} 32... Kf6 {[%clk 0:02:27.2]} 33. Kd4 {[%clk
0:00:33.7]} 33... h6 {[%clk 0:02:22.2]} 34. h4 {[%clk 0:00:24.8]} 34... g5
{[%clk 0:02:22.6]} 35. h5 {[%clk 0:00:23.3]} 35... Be6 {[%clk 0:02:15.8]} 36.
Be4 {[%clk 0:00:20.4]} 36... g4 {[%clk 0:02:17.1]} 37. f4 {[%clk 0:00:16.3]}
37... Rxh5 {[%clk 0:02:16.4]} 38. Rb7 {[%clk 0:00:17.4]} 38... Ra5 {[%clk
0:02:16.9]} 39. Bc2 {[%clk 0:00:15.1]} 39... h5 {[%clk 0:02:16.3]} 40. g3 {[%clk
0:00:16.3]} 40... h4 {[%clk 0:02:08.9]} 41. gxh4 {[%clk 0:00:18.2]} 41... g3
{[%clk 0:01:56.2]} 42. Ke3 {[%clk 0:00:19.7]} 42... Rh5 {[%clk 0:01:55.7]} 43.
Rxa7 {[%clk 0:00:19.1]} 43... Rxh4 {[%clk 0:01:56.7]} 44. Be4 {[%clk 0:00:18]}
44... c3 {[%clk 0:01:51.7]} 45. Rc7 {[%clk 0:00:18.4]} 45... Rh3 {[%clk
0:01:49.7]} 46. Bg2 {[%clk 0:00:14.9]} 46... Rh2 {[%clk 0:01:50.7]} 47. Bf3
{[%clk 0:00:11.9]} 47... c2 {[%clk 0:01:51]} 48. a5 {[%clk 0:00:11.3]} 48... g2
{[%clk 0:01:14.7]} 49. Bxg2 {[%clk 0:00:10.7]} 49... Rxg2 {[%clk 0:01:15.1]} 50.
Rc6 {[%clk 0:00:11.2]} 50... Kf5 {[%clk 0:01:14.9]} 51. Rc5+ {[%clk 0:00:11.9]}
51... Kf6 {[%clk 0:01:15.9]} 52. a6 {[%clk 0:00:13.6]} 52... Rg8 {[%clk
0:01:12.9]} 53. Rxc2 {[%clk 0:00:14.6]} 53... Ra8 {[%clk 0:01:13.6]} 54. Rc6
{[%clk 0:00:16.1]} 54... Kf5 {[%clk 0:01:13.2]} 55. Rc5+ {[%clk 0:00:16.9]}
55... Kf6 {[%clk 0:01:14.5]} 56. Rc6 {[%clk 0:00:18.3]} 56... Ra7 {[%clk
0:01:13.9]} 57. Kd4 {[%clk 0:00:16.9]} 57... Kf5 {[%clk 0:01:14.2]} 58. Kc5
{[%clk 0:00:18.5]} 58... Kxf4 {[%clk 0:01:14]} 59. Kb6 {[%clk 0:00:20]} 59...
Ra8 {[%clk 0:01:15]} 60. a7 {[%clk 0:00:20.5]} 60... Bd5 {[%clk 0:01:15.3]} 61.
Rd6 {[%clk 0:00:13.8]} 61... Ke5 {[%clk 0:01:14.3]} 62. Rd7 {[%clk 0:00:09.8]}
62... f5 {[%clk 0:01:14.2]} 63. Kc5 {[%clk 0:00:11.2]} 63... Be4 {[%clk
0:01:11.4]} 64. Re7+ {[%clk 0:00:12.4]} 64... Kf6 {[%clk 0:01:11.6]} 65. Rc7
{[%clk 0:00:12.1]} 65... Ke5 {[%clk 0:01:12.9]} 66. Re7+ {[%clk 0:00:12.8]}
66... Kf4 {[%clk 0:01:14.4]} 67. Kd4 {[%clk 0:00:09.8]} 67... Rd8+ {[%clk
0:01:14.5]} 68. Kc5 {[%clk 0:00:10.9]} 68... Kf3 {[%clk 0:01:15.7]} 69. Re6
{[%clk 0:00:05.4]} 69... f4 {[%clk 0:01:15.6]} 70. Kb6 {[%clk 0:00:03.5]} 70...
Ke3 {[%clk 0:01:15.7]} 0-1

[Event "*** Titled Tuesday Blitz"]
[Site "Chess.com"]
[Date "2018.06.05"]
[Round "10"]
[White "andrewtnb"]
[Black "Angry_Serb"]
[Result "0-1"]
[WhiteElo "2378"]
[BlackElo "2472"]
[TimeControl "180+2"]
[EndTime "15:26:43 PDT"]
[Termination "Angry_Serb won by resignation"]

1. d4 {[%clk 0:03:01.9]} 1... d5 {[%clk 0:03:00.3]} 2. Nf3 {[%clk 0:03:02.2]}
2... Nc6 {[%clk 0:02:56.6]} 3. Bf4 {[%clk 0:03:00.7]} 3... Bg4 {[%clk
0:02:55.9]} 4. Nbd2 {[%clk 0:03:00.1]} 4... f6 {[%clk 0:02:57]} 5. h3 {[%clk
0:02:57.6]} 5... Bh5 {[%clk 0:02:54.2]} 6. Bh2 {[%clk 0:02:51.8]} 6... e6 {[%clk
0:02:53.2]} 7. e3 {[%clk 0:02:50.4]} 7... Bd6 {[%clk 0:02:52.6]} 8. c4 {[%clk
0:02:45]} 8... Bxh2 {[%clk 0:02:49.1]} 9. Rxh2 {[%clk 0:02:46.4]} 9... Nge7
{[%clk 0:02:48.5]} 10. Bd3 {[%clk 0:02:39.2]} 10... Bg6 {[%clk 0:02:47.1]} 11.
Bxg6+ {[%clk 0:02:38.1]} 11... Nxg6 {[%clk 0:02:49]} 12. Qb3 {[%clk 0:02:35.4]}
12... Qd7 {[%clk 0:02:44.1]} 13. O-O-O {[%clk 0:02:33.3]} 13... O-O {[%clk
0:02:34.7]} 14. Rhh1 {[%clk 0:02:30.4]} 14... Kh8 {[%clk 0:02:30]} 15. h4 {[%clk
0:02:22.5]} 15... Nge7 {[%clk 0:02:17.9]} 16. Kb1 {[%clk 0:02:10]} 16... a5
{[%clk 0:02:13.9]} 17. cxd5 {[%clk 0:01:57]} 17... Nxd5 {[%clk 0:02:10.5]} 18.
Rc1 {[%clk 0:01:55.4]} 18... a4 {[%clk 0:02:10.2]} 19. Qc4 {[%clk 0:01:55]}
19... Na5 {[%clk 0:02:02.3]} 20. Qd3 {[%clk 0:01:46.5]} 20... Nb4 {[%clk
0:01:39.4]} 21. Qc3 {[%clk 0:01:46.3]} 21... Nd5 {[%clk 0:01:36.6]} 22. Qd3
{[%clk 0:01:45.6]} 22... Ra6 {[%clk 0:01:31.7]} 23. Nc4 {[%clk 0:01:39]} 23...
Qb5 {[%clk 0:01:21.9]} 24. Nce5 {[%clk 0:01:30.3]} 24... Qe8 {[%clk 0:01:10.1]}
25. Nc4 {[%clk 0:01:25.3]} 25... Qb5 {[%clk 0:01:00]} 26. Nce5 {[%clk
0:01:25.3]} 26... Qb4 {[%clk 0:00:57.8]} 27. Nd7 {[%clk 0:01:19.9]} 27... Rd8
{[%clk 0:00:48.9]} 28. Nc5 {[%clk 0:01:12.7]} 28... Rb6 {[%clk 0:00:49.8]} 29.
Rc2 {[%clk 0:01:10.8]} 29... a3 {[%clk 0:00:37.3]} 30. b3 {[%clk 0:01:07.7]}
30... Qb5 {[%clk 0:00:33]} 31. Qxb5 {[%clk 0:01:04.8]} 31... Rxb5 {[%clk
0:00:34.9]} 32. Nxe6 {[%clk 0:01:02.5]} 32... Rd7 {[%clk 0:00:36]} 33. Rc5
{[%clk 0:00:58.5]} 33... b6 {[%clk 0:00:17.1]} 34. Rxb5 {[%clk 0:00:53.7]} 34...
Nc3+ {[%clk 0:00:18.2]} 35. Kc2 {[%clk 0:00:54.3]} 35... Nxb5 {[%clk 0:00:20.1]}
36. Kd3 {[%clk 0:00:52.2]} 36... Nc6 {[%clk 0:00:20]} 37. Kc4 {[%clk 0:00:32]}
37... Nd6+ {[%clk 0:00:20.6]} 38. Kd3 {[%clk 0:00:30.8]} 38... Nb4+ {[%clk
0:00:21.6]} 39. Ke2 {[%clk 0:00:31.2]} 39... Nxa2 {[%clk 0:00:23]} 40. Ra1
{[%clk 0:00:31.8]} 40... Nc3+ {[%clk 0:00:24]} 41. Kd3 {[%clk 0:00:32.9]} 41...
Ncb5 {[%clk 0:00:24.5]} 42. Nf4 {[%clk 0:00:33.2]} 42... c5 {[%clk 0:00:24.8]}
43. d5 {[%clk 0:00:33]} 43... Nb7 {[%clk 0:00:23.1]} 44. e4 {[%clk 0:00:33.7]}
44... Na5 {[%clk 0:00:24.1]} 45. Nd2 {[%clk 0:00:33.9]} 45... Kg8 {[%clk
0:00:17.1]} 46. Kc2 {[%clk 0:00:31.8]} 46... Nd4+ {[%clk 0:00:16]} 47. Kc3
{[%clk 0:00:32.5]} 47... Kf7 {[%clk 0:00:16.1]} 48. Nc4 {[%clk 0:00:28.8]} 48...
Naxb3 {[%clk 0:00:13.4]} 49. Rxa3 {[%clk 0:00:29.3]} 49... b5 {[%clk 0:00:14.8]}
50. Rxb3 {[%clk 0:00:27.8]} 50... Nxb3 {[%clk 0:00:14.6]} 51. Kxb3 {[%clk
0:00:29.7]} 51... bxc4+ {[%clk 0:00:15.8]} 52. Kxc4 {[%clk 0:00:31.6]} 52... Rc7
{[%clk 0:00:16.7]} 53. d6 {[%clk 0:00:29.9]} 53... Rc8 {[%clk 0:00:17.8]} 54.
Kd5 {[%clk 0:00:21.5]} 54... c4 {[%clk 0:00:19.7]} 55. d7 {[%clk 0:00:22.4]}
55... Rd8 {[%clk 0:00:20.1]} 56. Kd6 {[%clk 0:00:23.5]} 56... c3 {[%clk
0:00:20.4]} 57. Nd3 {[%clk 0:00:23.4]} 57... c2 {[%clk 0:00:21.1]} 58. f4 {[%clk
0:00:23.9]} 58... h5 {[%clk 0:00:21.5]} 59. e5 {[%clk 0:00:24.7]} 59... fxe5
{[%clk 0:00:22.3]} 60. fxe5 {[%clk 0:00:25.8]} 60... Ra8 {[%clk 0:00:22.3]} 61.
e6+ {[%clk 0:00:26.5]} 61... Kf6 {[%clk 0:00:23.6]} 62. e7 {[%clk 0:00:21.9]}
62... Ra3 {[%clk 0:00:24]} 63. e8=Q {[%clk 0:00:19.8]} 63... Rxd3+ {[%clk
0:00:24.7]} 64. Kc7 {[%clk 0:00:20.5]} 64... c1=Q+ {[%clk 0:00:26]} 65. Kd8
{[%clk 0:00:21.9]} 65... Qc5 {[%clk 0:00:24.7]} 66. Qxh5 {[%clk 0:00:20.2]}
66... Qxh5 {[%clk 0:00:20.6]} 0-1

[Event "*** Titled Tuesday Blitz"]
[Site "Chess.com"]
[Date "2018.06.05"]
[Round "10"]
[White "savinspm"]
[Black "Shaman91"]
[Result "1-0"]
[WhiteElo "2145"]
[BlackElo "2532"]
[TimeControl "180+2"]
[EndTime "15:26:50 PDT"]
[Termination "savinspm won by resignation"]

1. e4 {[%clk 0:03:01.9]} 1... g6 {[%clk 0:03:01.8]} 2. d4 {[%clk 0:03:02.5]}
2... Bg7 {[%clk 0:03:03.7]} 3. c4 {[%clk 0:03:01.9]} 3... c5 {[%clk 0:03:03.8]}
4. d5 {[%clk 0:03:02.6]} 4... d6 {[%clk 0:03:05]} 5. Nc3 {[%clk 0:03:03.7]} 5...
e6 {[%clk 0:03:06.1]} 6. Bd3 {[%clk 0:03:03.8]} 6... Ne7 {[%clk 0:03:06.9]} 7.
Nge2 {[%clk 0:03:01.6]} 7... O-O {[%clk 0:03:06.9]} 8. O-O {[%clk 0:03:02.1]}
8... a6 {[%clk 0:03:08]} 9. a4 {[%clk 0:03:01.6]} 9... exd5 {[%clk 0:03:09.1]}
10. exd5 {[%clk 0:03:00.3]} 10... Nd7 {[%clk 0:03:10.1]} 11. Bf4 {[%clk
0:02:58.4]} 11... Ne5 {[%clk 0:03:10.6]} 12. Bxe5 {[%clk 0:02:59.2]} 12... Bxe5
{[%clk 0:03:12.4]} 13. Qd2 {[%clk 0:02:58.9]} 13... Nf5 {[%clk 0:03:12.2]} 14.
h3 {[%clk 0:02:50.3]} 14... Qh4 {[%clk 0:03:10.5]} 15. f4 {[%clk 0:02:46.6]}
15... Bg7 {[%clk 0:03:06.8]} 16. Ne4 {[%clk 0:02:43.9]} 16... Qd8 {[%clk
0:02:54.5]} 17. Rae1 {[%clk 0:02:38.4]} 17... Bd7 {[%clk 0:02:48.8]} 18. b3
{[%clk 0:02:38.8]} 18... Rb8 {[%clk 0:02:46.1]} 19. g4 {[%clk 0:02:39]} 19...
Nd4 {[%clk 0:02:44.8]} 20. Nxd4 {[%clk 0:02:39.4]} 20... Bxd4+ {[%clk
0:02:46.6]} 21. Kg2 {[%clk 0:02:40.8]} 21... Qc7 {[%clk 0:02:41.1]} 22. f5
{[%clk 0:02:29.7]} 22... gxf5 {[%clk 0:02:31]} 23. gxf5 {[%clk 0:02:23.8]} 23...
f6 {[%clk 0:02:29.4]} 24. Qf4 {[%clk 0:02:21.5]} 24... Be5 {[%clk 0:02:28.3]}
25. Qf3 {[%clk 0:02:13.4]} 25... Kh8 {[%clk 0:02:28.4]} 26. Kh1 {[%clk
0:02:14.7]} 26... b5 {[%clk 0:02:27.1]} 27. axb5 {[%clk 0:02:14.7]} 27... axb5
{[%clk 0:02:28.8]} 28. Rg1 {[%clk 0:02:14.4]} 28... bxc4 {[%clk 0:02:29.5]} 29.
bxc4 {[%clk 0:02:15.1]} 29... Rb3 {[%clk 0:02:29.7]} 30. Rg2 {[%clk 0:02:14.5]}
30... Be8 {[%clk 0:02:21.8]} 31. Reg1 {[%clk 0:02:13.5]} 31... Qf7 {[%clk
0:02:22]} 32. Qd1 {[%clk 0:02:07.9]} 32... Ra3 {[%clk 0:02:13.5]} 33. Nf2 {[%clk
0:02:07.9]} 33... Ra1 {[%clk 0:02:06.1]} 34. Qg4 {[%clk 0:02:05]} 34... Rxg1+
{[%clk 0:02:05.3]} 35. Rxg1 {[%clk 0:02:06.2]} 35... Rg8 {[%clk 0:01:28.1]} 36.
Qxg8+ {[%clk 0:02:06.7]} 36... Qxg8 {[%clk 0:01:29.8]} 37. Rxg8+ {[%clk
0:02:07.7]} 37... Kxg8 {[%clk 0:01:31.2]} 38. Ng4 {[%clk 0:02:09]} 38... Bd4
{[%clk 0:01:28.9]} 39. Kg2 {[%clk 0:02:08.7]} 39... h5 {[%clk 0:01:26.6]} 40.
Nf2 {[%clk 0:02:07.8]} 40... Kg7 {[%clk 0:01:24.8]} 41. Ne4 {[%clk 0:02:07.8]}
41... Be5 {[%clk 0:01:25.5]} 42. Be2 {[%clk 0:02:05.6]} 42... h4 {[%clk
0:01:18.9]} 43. Bd1 {[%clk 0:02:02.1]} 43... Kh6 {[%clk 0:01:16.5]} 44. Kf2
{[%clk 0:02:01.8]} 44... Bf7 {[%clk 0:01:14.9]} 45. Ke3 {[%clk 0:01:59.8]} 45...
Bg8 {[%clk 0:01:14.1]} 46. Nd2 {[%clk 0:01:57.8]} 46... Bh7 {[%clk 0:01:07.6]}
47. Ke4 {[%clk 0:01:58.8]} 47... Bg3 {[%clk 0:01:03.5]} 48. Bg4 {[%clk
0:01:55.8]} 48... Bg8 {[%clk 0:01:02]} 49. Bd1 {[%clk 0:01:43.9]} 49... Bf7
{[%clk 0:00:59.7]} 50. Ke3 {[%clk 0:01:38.7]} 50... Kg5 {[%clk 0:00:42.9]} 51.
Ke4 {[%clk 0:01:38.7]} 51... Kh6 {[%clk 0:00:41.5]} 52. Ke3 {[%clk 0:01:39]}
52... Be8 {[%clk 0:00:42.2]} 53. Ke4 {[%clk 0:01:38.5]} 53... Bd7 {[%clk
0:00:34.8]} 54. Nf3 {[%clk 0:01:35.1]} 54... Bf2 {[%clk 0:00:33.2]} 55. Bc2
{[%clk 0:01:34.4]} 55... Bg3 {[%clk 0:00:27.8]} 56. Bd1 {[%clk 0:01:35.4]} 56...
Bc8 {[%clk 0:00:26.4]} 57. Ba4 {[%clk 0:01:29.6]} 57... Ba6 {[%clk 0:00:24.4]}
58. Bb5 {[%clk 0:01:29.6]} 58... Bc8 {[%clk 0:00:25.1]} 59. Nd2 {[%clk
0:01:26.8]} 59... Kg5 {[%clk 0:00:22.3]} 60. Nf3+ {[%clk 0:01:27.7]} 60... Kh5
{[%clk 0:00:23.5]} 61. Be8+ {[%clk 0:01:28.4]} 61... Kh6 {[%clk 0:00:23.7]} 62.
Bb5 {[%clk 0:01:28.2]} 62... Kh5 {[%clk 0:00:22.6]} 63. Be8+ {[%clk 0:01:27.9]}
63... Kh6 {[%clk 0:00:23.7]} 64. Bb5 {[%clk 0:01:20.8]} 64... Kg7 {[%clk
0:00:24.2]} 65. Ng1 {[%clk 0:01:12.9]} 65... Kf8 {[%clk 0:00:22.9]} 66. Ne2
{[%clk 0:01:12]} 66... Be5 {[%clk 0:00:22.5]} 67. Nf4 {[%clk 0:01:12.2]} 67...
Kg7 {[%clk 0:00:20]} 68. Ne6+ {[%clk 0:01:11.6]} 68... Kh6 {[%clk 0:00:20.9]}
69. Kf3 {[%clk 0:01:09.2]} 69... Kh5 {[%clk 0:00:18.6]} 70. Be8+ {[%clk
0:01:09.3]} 70... Kh6 {[%clk 0:00:19.5]} 71. Kg4 {[%clk 0:01:10.5]} 71... Bg3
{[%clk 0:00:20.1]} 72. Bb5 {[%clk 0:01:04.2]} 72... Be1 {[%clk 0:00:17.7]} 73.
Nc7 {[%clk 0:00:59.5]} 73... Kg7 {[%clk 0:00:14.2]} 74. Ne8+ {[%clk 0:00:58.4]}
74... Kf7 {[%clk 0:00:14.1]} 75. Nxd6+ {[%clk 0:00:59.3]} 1-0